Cogmind - Beta 10.2 @@@ ROGUE MODE // 2022.01.19 @ 22:39:03 Player: xerxia Result: Destroyed by Y-45 Defender with Heavy Assault Rifle Performance ------------- Evolutions (1) 500 Regions Visited (3) 600 Robots Destroyed (17) 85 Value Destroyed (601) 601 Prototype IDs (0) 0 Alien Tech Used (0) 0 Bonus (0) 0 TOTAL SCORE: 1786 Bonus ------- None Cogmind --------- Core Integrity 0/400 Matter 300/300 Energy 100/100 System Corruption 2% Temperature Cool (9) Movement Core (100) Ox1 Location -9/Storage Parts ------- > --- POWER (1) -------- (None) > --- PROPULSION (4) --- (None) > --- UTILITY (2) ------ Small Storage Unit > --- WEAPON (2) ------- (None) > --- INVENTORY (6) ---- Heavy Ion Engine Cooling System Cooling System Shock Rifle Peak State ------------ > --- POWER ------------ Ion Engine > --- PROPULSION ------- Aluminum Leg Aluminum Leg Aluminum Leg Aluminum Leg > --- UTILITY ---------- Small Storage Unit Small Storage Unit > --- WEAPON ----------- Shock Rifle Heavy Assault Rifle > --- INVENTORY -------- Cooling System Cooling System Shock Rifle Mining Laser [Rating: 12] Favorites ----------- Power Ion Engine Engine Ion Engine Propulsion Aluminum Leg Leg Aluminum Leg Utility Small Storage Unit Storage Small Storage Unit Weapon Medium Laser Energy Gun Medium Laser Ballistic Gun Assault Rifle Launcher Grenade Launcher Special Weapon Mining Laser Build | -11 -10 -9 -9 ------- Run | Scr Mat Mat Sto Slots Evolved 2 | . . 2 . Power . | . . . . Propulsion 2 | . . 2 . Utility . | . . . . Weapon . | . . . . Parts Attached 17 | 6 3 6 2 Power 2 | 1 . 1 . Engine 2 | 1 . 1 . Core . | . . . . Reactor . | . . . . Propulsion 6 | 2 1 3 . Treads . | . . . . Leg 6 | 2 1 3 . Wheel . | . . . . Hover . | . . . . Flight . | . . . . Utility 2 | 1 1 . . Device . | . . . . Storage 2 | 1 1 . . Processor . | . . . . Hackware . | . . . . Protection . | . . . . Artifact . | . . . . Weapon 7 | 2 1 2 2 Energy Gun 2 | 1 . 1 . Energy Cannon . | . . . . Ballistic Gun 3 | 1 . 1 1 Ballistic Cannon . | . . . . Launcher 1 | . 1 . . Special Weapon 1 | . . . 1 Impact Weapon . | . . . . Slashing Weapon . | . . . . Piercing Weapon . | . . . . Special Melee Weapon . | . . . . Unidentified Prototypes . | . . . . Parts Lost 13 | . 1 3 9 Power 2 | . . 1 1 Propulsion 5 | . . 1 4 Utility 1 | . . . 1 Weapon 5 | . 1 1 3 Highest Loss Streak 6 | . 1 2 6 Average Slot Usage (%) 85 | . 96 72 84 Engine 11 | . 14 11 8 Leg 29 | . 28 25 33 Storage 23 | . 27 22 22 Energy Gun 6 | . 11 3 5 Ballistic Gun 5 | . 8 . 6 Launcher 4 | . 5 10 . Special Weapon 3 | . . . 7 Naked Turns . | . . . . Heaviest Build 19 | 13 18 19 19 Greatest Support 40 | 20 20 40 40 Greatest Overweight (x) 3 | 1 . 1 3 Average Overweight (x) . | . . . . Largest Inventory Capacity 8 | 6 8 8 8 Average Capacity 7 | 5 7 8 7 Most Carried 7 | 6 4 7 5 Average Carried 3 | 1 2 4 4 Final Capacity 8 | 6 8 8 6 Final Carried 4 | 1 4 4 4 Class Distribution -------------------- 64% | Mutant 35% | Scavenger-Mutant Dominant Class ---------------- Mutant | -10/Materials Scavenger-Mutant | -9/Materials Scavenger-Mutant | -9/Storage Resources | -11 -10 -9 -9 ----------- Run | Scr Mat Mat Sto Matter Collected 486 | 260 96 75 55 Remotely . | . . . . Salvage Created 545 | 60 201 178 106 Parts 37 | 3 10 13 11 Haulers Intercepted . | . . . . Recyclers Shooed . | . . . . Parts Field Recycled . | . . . . Retrieved Matter . | . . . . Parts Self-Destructed . | . . . . Prevented . | . . . . Kills | -11 -10 -9 -9 ------- Run | Scr Mat Mat Sto Combat Hostiles Destroyed 16 | . 6 5 5 Guns 7 | . 2 1 4 Cannons 1 | . . . 1 AOE 8 | . 4 4 . Classes Destroyed 4 | 1 1 1 1 Recycler 1 | 1 . . . Swarmer 3 | . . . 3 Grunt 9 | . 6 3 . Sentry 4 | . . 2 2 Best Kill Streak 3 | 1 2 3 3 Combat Bots Only 3 | . 2 3 3 Max Kills in Single Turn 2 | 1 1 2 1 Gunslinging . | . . . . Exploded 2 | . 1 2 . Melee . | . . . . Uniques/NPCs Destroyed . | . . . . Combat | -11 -10 -9 -9 -------- Run | Scr Mat Mat Sto Damage Taken 1623 | . 287 406 930 Core 454 | . 51 51 352 Absorbed by Shields . | . . . . Core Remaining (%) 89 | 100 79 . . Volleys Fired 46 | 3 14 10 19 Largest 2 | 1 2 1 2 Hottest 123 | 50 80 50 123 Shots Fired 64 | 3 25 10 26 Gun 47 | 3 20 6 18 Cannon . | . . . . Launcher 9 | . 5 4 . Special 8 | . . . 8 Kinetic 24 | . 7 . 17 Thermal 24 | 3 13 . 8 Explosive 9 | . 5 4 . Electromagnetic 7 | . . 6 1 Robot Hit Streak 6 | 1 5 6 4 Robot Miss Streak 3 | 1 3 1 3 Penetration Max . | . . . . Secondary Targets . | . . . . Shots Hit Robots 42 | 2 18 6 16 Core Hits 27 | 2 11 7 7 Critical Hits . | . . . . Critical Kills . | . . . . Critical Parts Destroyed . | . . . . Melee Attacks . | . . . . Impact . | . . . . Slashing . | . . . . Piercing . | . . . . Sneak Attacks . | . . . . Combat Hostiles . | . . . . Follow-up Attacks . | . . . . Damage Inflicted 1180 | 25 426 432 297 Guns 471 | 25 188 43 215 Cannons . | . . . . Explosions 627 | . 238 389 . Melee . | . . . . Ramming 10 | . . . 10 Kinetic 247 | . 48 . 199 Thermal 430 | 25 140 193 72 Explosive 434 | . 238 196 . Electromagnetic 59 | . . 43 16 Impact . | . . . . Slashing . | . . . . Piercing . | . . . . Highest Corruption 2 | . . . 2 Average Corruption 2 | . . . 2 Corruption Purged . | . . . . Overload Shots . | . . . . Overflow Damage 115 | . 1 114 . Projectiles . | . . . . Explosions 115 | . 1 114 . Melee . | . . . . Knockbacks . | . . . . Impact . | . . . . Kinetic . | . . . . Secondary . | . . . . Self-Inflicted Damage 207 | . 19 184 4 Shots 5 | . 1 4 . Rammed 3 | . . . 3 Targets Rammed 4 | . . . 4 Kicked 1 | . . . 1 Crushed . | . . . . Highest Temperature 153 | 20 153 63 85 Average Temperature 39 | 9 59 24 27 Received Heat Transfer 570 | . 153 93 324 Siege Activations . | . . . . Robots Corrupted . | . . . . Combat Hostiles . | . . . . Parts Fried 1 | . . 1 . Impact Corruptions . | . . . . Robots Melted . | . . . . Combat Hostiles . | . . . . Parts Melted . | . . . . Heat Transferred 731 | 74 407 100 150 Parts Sabotaged . | . . . . Parts Stolen . | . . . . Parts Stripped . | . . . . Power Chain Reactions . | . . . . Missiles Intercepted . | . . . . Alert | -11 -10 -9 -9 ------- Run | Scr Mat Mat Sto Peak Influence 290 | 5 203 290 282 Initial 122 | . 3 85 122 Average 132 | 1 86 202 182 Maximum Alert Level 1 | . 1 1 1 Low Security (%) 73 | 100 96 45 61 Level 1 26 | . 3 54 38 Level 2 . | . . . . Level 3 . | . . . . Level 4 . | . . . . Level 5 . | . . . . High Security . | . . . . Max Security . | . . . . Squads Dispatched 4 | . 1 1 2 Investigation . | . . . . Extermination . | . . . . Reinforcement 4 | . 1 1 2 Assault . | . . . . Garrison . | . . . . Intercept . | . . . . Construction Impeded . | . . . . Haulers Reinforced . | . . . . Stealth | -11 -10 -9 -9 --------- Run | Scr Mat Mat Sto Distress Signals . | . . . . Communications Jammed . | . . . . Distress Signals . | . . . . Times Spotted 34 | . 11 8 15 Peak Tracking Total 8 | . 4 3 8 Tactical Retreats 1 | . . . 1 Traps | -11 -10 -9 -9 ------- Run | Scr Mat Mat Sto Traps Triggered . | . . . . Indirectly . | . . . . Trap Hack Attempts . | . . . . Triggered . | . . . . Disarmed . | . . . . Reprogrammed . | . . . . Reused . | . . . . Traps Extracted . | . . . . Installed . | . . . . Triggered . | . . . . Machines | -11 -10 -9 -9 ---------- Run | Scr Mat Mat Sto Machines Disabled 4 | . . 3 1 Max in Single Turn 3 | . . 3 1 Machines Sabotaged . | . . . . Garrisons Compromised . | . . . . Overloaded Fab Kills . | . . . . Fab Network Shutdowns . | . . . . Hacking | -11 -10 -9 -9 --------- Run | Scr Mat Mat Sto Machines Accessed . | . . . . Terminals . | . . . . Fabricators . | . . . . Repair Stations . | . . . . Recycling Units . | . . . . Scanalyzers . | . . . . Garrison Access . | . . . . Total Hacks . | . . . . Successful . | . . . . Failed . | . . . . Catastrophic . | . . . . Database Lockouts . | . . . . Manual . | . . . . Terminals . | . . . . Fabricators . | . . . . Repair Stations . | . . . . Recycling Units . | . . . . Scanalyzers . | . . . . Garrison Access . | . . . . Terminal Hacks . | . . . . Fabricator Hacks . | . . . . Repair Station Hacks . | . . . . Recycling Unit Hacks . | . . . . Scanalyzer . | . . . . Garrison Access Hacks . | . . . . Unauthorized Hacks . | . . . . Terminals . | . . . . Fabricators . | . . . . Repair Stations . | . . . . Recycling Units . | . . . . Scanalyzers . | . . . . Garrison Access . | . . . . Data Cores Recovered . | . . . . Used . | . . . . Hacking Detections . | . . . . Full Trace Events . | . . . . Feedback Events . | . . . . Feedback Blocked . | . . . . Robot Schematics Acquired . | . . . . Robots Built . | . . . . Matter . | . . . . Time . | . . . . Total Robot Build Rating . | . . . . Part Schematics Acquired . | . . . . Parts Built . | . . . . Matter . | . . . . Time . | . . . . Total Part Build Rating . | . . . . Parts Repaired . | . . . . Time . | . . . . Parts Recycled . | . . . . Recycled Matter . | . . . . Retrieved Matter . | . . . . Retrieved Components . | . . . . Parts Scanalyzed . | . . . . Part Schematics Acquired . | . . . . Parts Damaged . | . . . . Bothacking | -11 -10 -9 -9 ------------ Run | Scr Mat Mat Sto Used RIF Installer . | . . . . Robots Hacked . | . . . . Non-combat . | . . . . Combat . | . . . . Robot Hacks Applied . | . . . . Relay Couplers Released . | . . . . Robots Rewired . | . . . . Allies Hacked . | . . . . Hacks Repelled . | . . . . Allies | -11 -10 -9 -9 -------- Run | Scr Mat Mat Sto Total Allies . | . . . . Largest Group . | . . . . Highest-Rated Group . | . . . . Highest-Rated Ally . | . . . . Total Orders . | . . . . Ally Attacks . | . . . . Total Damage . | . . . . Kills . | . . . . Allies Corrupted . | . . . . Allies Melted . | . . . . Intel | -11 -10 -9 -9 ------- Run | Scr Mat Mat Sto Robot Analysis Total . | . . . . Derelict Logs Recovered . | . . . . Drone Launches . | . . . . Drone Recoveries . | . . . . Exploration | -11 -10 -9 -9 ------------- Run | Scr Mat Mat Sto Turns Passed 688 | 102 198 152 236 Spaces Moved 417 | 74 124 90 129 Core 29 | 21 . . 8 Treads . | . . . . Legs 388 | 53 124 90 121 Wheels . | . . . . Hover . | . . . . Flight . | . . . . Fastest Speed 50 | 50 120 120 100 Average Speed 123 | 113 120 131 126 Slowest Speed 200 | 120 120 150 200 Overloaded Moves . | . . . . Propulsion Burnouts . | . . . . Robots Hopped . | . . . . Cave-ins Triggered . | . . . . Exploration Rate (%) 18 | 4 27 14 30 Regions Visited 3 Branch Regions 1 Pre-discovered Areas . | . . . . Known Exits Taken . | . . . . Unknown Exits Taken 3 | 1 1 1 . Scrap Searched . | . . . . Spaces Dug . | . . . . Terrain Destroyed 88 | . 26 60 2 Melee . | . . . . Projectile 2 | . . . 2 AOE 86 | . 26 60 . Terrain Rammed . | . . . . Walls Destroyed . | . . . . Machines Disabled . | . . . . Actions | -11 -10 -9 -9 --------- Run | Scr Mat Mat Sto Total 508 | 89 147 115 157 Wait 3 | . 1 . 2 Move 414 | 73 123 89 129 Hop . | . . . . Pick Up 21 | 7 5 8 1 Fast Attach . | . . . . Attach 14 | 6 1 6 1 Detach . | . . . . Swap 3 | . 2 . 1 Drop 3 | . 1 2 . Fire 46 | 3 14 10 19 Melee . | . . . . Ram 2 | . . . 2 Kick 2 | . . . 2 Crush . | . . . . Escape Stasis . | . . . . Rewire . | . . . . Trap . | . . . . Miscellaneous . | . . . . Route ------- -11/Scrapyard -10/Materials -9/Materials -9/Storage History --------- Turn | Location | Event 20 | -11/Scrapyard | Discovered new exit (range 16) 103 | -11/Scrapyard | Entered Materials 293 | -10/Materials | Discovered new exit (range 5) 301 | -10/Materials | Entered another Materials area 301 | -9/Materials | Evolved 2 slots: Propulsion x2 306 | -9/Materials | Build established: Mutant 423 | -9/Materials | Discovered new exit (range 8) 453 | -9/Materials | Entered Storage 670 | -9/Storage | Lost 6 parts (1p3n2w) 672 | -9/Storage | Core integrity fell below 50% 685 | -9/Storage | Core integrity fell below 20% 689 | -9/Storage | Destroyed by Y-45 Defender with Heavy Assault Rifle Last Messages --------------- 00629_ U-05 Engineer builds a Wall. 00629_ Mining Laser destroyed. 00629_ R-06 Scavenger collects Lgt. Assault Rifle. 00635_ K-01 Serf collects debris. 00635_ Aluminum Leg destroyed. 00637_ Y-45 Defender destroyed. 00639_ Acquired 20 matter. 00639_ K-01 Serf collects debris. 00639_ Ion Engine destroyed. 00642_ Acquired 15 matter. 00645_ K-01 Serf collects debris. 00672_ Slammed into Y-45 Defender. 00673_ Kicked K-01 Serf out of the way. 00674_ Aluminum Leg destroyed. 00675_ Slammed into K-01 Serf. 00675_ Destabilizing: Core damaged (-8). 00680_ Hvy. Assault Rifle destroyed. 00684_ Slammed into G-34 Mercenary. 00684_ Sml. Storage Unit destroyed. 00684_ System corrupted by crushing effect (+2). Map ----- +----------------------------------------------------+ | ???????????????????????????# """" #???????# #? | | ???????????????????????????# ?? #?####### #? | | ???????????????????????????####+######?#"""""# #? | | ?????????????????#####????????# ########""T""# #? | | ?????????????????#"""#??????### #? | | ????????????????##"T"########%# #? | | ????????????????# # =*[# !! """ #? | | ???????????????## "# !!# !! """ #? | | ???????????????# T# # %! """ #? | | ???????????????## """" "# # #? | | ????????????????# """" # + #? | | ????????????????# """" #!! # ########### #? | | ????????????????# """" #!! # #?????????# #? | | ????????????????# #!! # #?????????# #? | | ????????????????# % # # #?????????# #? | | ???????????????######+######### ####??????# #? | | ???????????????# %% % + + #? | | ???????????????# ##########??????# ##? | | ???????????????# g ##??????????????# #?? | | ???????????????########gY #???????????????? #?? | | ??????????????????????#Y #???????????????? ??? | | ??????????????????????#% #??????????????????????? | | ??????????????????????# Yg#??????????????????????? | | ??????????????????????# #??????????????????????? | | ??????????????????????#r +??????????????????????? | | ??????????????????????# g@# ?????????????????????? | | ??????????????????????# # ?????????????????????? | | ??????????????????????# #??????????????????????? | | ??????????????????????#u #??????????????????????? | | ?????????????????????? ??????????????????????? | | ????????????????????? ??????????????????????? | | ???????????????????? ?????????????????????? | | ??????????????????? ?????????????????????? | | ??????????????????#### ##????????????????????? | | ?????????????????????#######?????????????????????? | | ?????????????????????????????????????????????????? | | ?????????????????????????????????????????????????? | | ?????????????????????????????????????????????????? | | ?????????????????????????????????????????????????? | | ?????????????????????????????????????????????????? | | ?????????????????????????????????????????????????? | | ?????????????????????????????????????????????????? | | ?????????????????????????????????????????????????? | | ?????????????????????????????????????????????????? | | ?????????????????????????????????????????????????? | | ?????????????????????????????????????????????????? | | ?????????????????????????????????????????????????? | | ?????????????????????????????????????????????????? | | ?????????????????????????????????????????????????? | | ?????????????????????????????????????????????????? | +----------------------------------------------------+ Best States ------------- Heat Dissipation 28 Energy Generation 10 Energy Capacity 250 Matter Stores 300 Matter Capacity 300 Sight Range 16 Terrain Scan Density 10 Evasion (%) 40 Item Schematics ----------------- None Robot Schematics ------------------ None Fabricated ------------ Nothing Alien Tech Used ----------------- None Achievements -------------- None Challenges ------------ None Game ------ Seed MassCoreRedirector Manual? 0 Play Time 00:11:36 Cumulative 44.4 hours Start 2022.01.19 @ 22:25:08 End 2022.01.19 @ 22:39:03 Sessions 1 Manual Loads 0 Difficulty Rogue Special Mode None Game No. 47 Rogue 4 Adventurer 1 Explorer 42 Win Type - Total 4 Types 4/0/0/0/0/0/0/0/0 Lore% 29 Gallery% 44 Achievement% 34 Wizard Run 0 Options --------- ASCII 0 Keyboard 0 Movement Numpad Keybinds 0 Fullscreen 1 Font 12/Smallcaps Map View 83x54 Tactical HUD 1 Map Filters NONE Filters NONE Steam 1 RUN: f72f0f8d-638f-4563-b43e-b8701dbec125